[Event "Titled Tuesday Blitz April 19 Late 2022"]
[White "Suleymanli, Aydin"]
[Black "Esipenko, Andrey"]
[WhiteFideId "13413937"]
[BlackFideId "24175439"]
[WhiteElo "2481"]
[BlackElo "2617"]
[Result "0-1"]
[Round "06"]
[TimeControl "180+1"]
[Date "2022.04.19"]
[WhiteClock "0:00:02"]
[BlackClock "0:00:03"]

1. e4 {[%clk 0:03:00]}  e5 {[%clk 0:02:59]} 2. Nf3 {[%clk 0:03:01]}  Nc6 {[%clk 0:02:59]} 3. Bb5 {[%clk 0:03:01]}  Nf6 {[%clk 0:02:59]} 4. O-O {[%clk 0:02:59]}  Nxe4 {[%clk 0:02:58]} 5. d4 {[%clk 0:02:59]}  exd4 {[%clk 0:02:58]} 6. Re1 {[%clk 0:02:47]}  f5 {[%clk 0:02:58]} 7. Nxd4 {[%clk 0:02:36]}  Nxd4 {[%clk 0:02:58]} 8. Qxd4 {[%clk 0:02:33]}  c6 {[%clk 0:02:59]} 9. Bd3 {[%clk 0:02:24]}  Kf7 {[%clk 0:02:58]} 10. Bxe4 {[%clk 0:02:09]}  fxe4 {[%clk 0:02:58]} 11. Nc3 {[%clk 0:02:09]}  d5 {[%clk 0:02:52]} 12. Nxe4 {[%clk 0:02:09]}  Be7 {[%clk 0:02:46]} 13. Ng3 {[%clk 0:02:06]}  Bf6 {[%clk 0:02:23]} 14. Qd1 {[%clk 0:01:54]}  Rf8 {[%clk 0:02:13]} 15. Nh5 {[%clk 0:01:48]}  Kg8 {[%clk 0:02:02]} 16. Nxf6+ {[%clk 0:01:47]}  Qxf6 {[%clk 0:02:03]} 17. Be3 {[%clk 0:01:46]}  Qg6 {[%clk 0:01:57]} 18. Kh1 {[%clk 0:01:39]}  Bf5 {[%clk 0:01:47]} 19. c3 {[%clk 0:01:38]}  Bc2 {[%clk 0:01:46]} 20. Qe2 {[%clk 0:01:29]}  Bd3 {[%clk 0:01:46]} 21. Qd1 {[%clk 0:01:28]}  b6 {[%clk 0:01:40]} 22. f3 {[%clk 0:01:26]}  c5 {[%clk 0:01:36]} 23. Qd2 {[%clk 0:01:25]}  Rad8 {[%clk 0:01:36]} 24. Bf4 {[%clk 0:01:18]}  d4 {[%clk 0:01:33]} 25. Be5 {[%clk 0:01:13]}  Rd7 {[%clk 0:01:22]} 26. cxd4 {[%clk 0:01:06]}  cxd4 {[%clk 0:01:22]} 27. Rac1 {[%clk 0:01:03]}  Bf5 {[%clk 0:01:15]} 28. Rc4 {[%clk 0:00:41]}  d3 {[%clk 0:01:12]} 29. Bc3 {[%clk 0:00:41]}  h6 {[%clk 0:01:10]} 30. g4 {[%clk 0:00:33]}  Be6 {[%clk 0:01:04]} 31. Rc6 {[%clk 0:00:33]}  Re8 {[%clk 0:01:03]} 32. Qe3 {[%clk 0:00:27]}  Rde7 {[%clk 0:00:56]} 33. Bb4 {[%clk 0:00:26]}  Bd5 {[%clk 0:00:54]} 34. Rxg6 {[%clk 0:00:07]}  Rxe3 {[%clk 0:00:53]} 35. Rxe3 {[%clk 0:00:08]}  Rxe3 {[%clk 0:00:53]} 36. Bc3 {[%clk 0:00:09]}  Rxf3 {[%clk 0:00:25]} 37. Kg1 {[%clk 0:00:09]}  Kf8 {[%clk 0:00:19]} 38. Bxg7+ {[%clk 0:00:05]}  Kf7 {[%clk 0:00:18]} 39. Rd6 {[%clk 0:00:05]}  Be6 {[%clk 0:00:08]} 40. Bc3 {[%clk 0:00:05]}  Bxg4 {[%clk 0:00:08]} 41. Rxh6 {[%clk 0:00:05]}  Bh3 {[%clk 0:00:08]} 42. Rh7+ {[%clk 0:00:03]}  Kg6 {[%clk 0:00:06]} 43. Rg7+ {[%clk 0:00:03]}  Kh6 {[%clk 0:00:06]} 44. Kh1 {[%clk 0:00:04]}  d2 {[%clk 0:00:02]} 45. Rg1 {[%clk 0:00:03]}  Rxc3 {[%clk 0:00:02]} 46. bxc3 {[%clk 0:00:02]}  Bg4 {[%clk 0:00:03]} 0-1


[Site "https://www.chess.com"]

[Event "Titled Tuesday Blitz April 19 Late 2022"]
[White "Vujic, Mihailo"]
[Black "Reprintsev, Alexander"]
[WhiteFideId "918873"]
[BlackFideId "14100541"]
[WhiteElo "2256"]
[BlackElo "2108"]
[Result "0-1"]
[Round "06"]
[TimeControl "180+1"]
[Date "2022.04.19"]
[WhiteClock "0:00:09"]
[BlackClock "0:00:21"]

1. e4 {[%clk 0:02:58]}  d5 {[%clk 0:02:54]} 2. exd5 {[%clk 0:02:57]}  Qxd5 {[%clk 0:02:54]} 3. Nf3 {[%clk 0:02:58]}  Bg4 {[%clk 0:02:53]} 4. Be2 {[%clk 0:02:58]}  Nc6 {[%clk 0:02:53]} 5. d4 {[%clk 0:02:59]}  O-O-O {[%clk 0:02:53]} 6. Be3 {[%clk 0:02:57]}  e5 {[%clk 0:02:52]} 7. c4 {[%clk 0:02:57]}  Qa5+ {[%clk 0:02:29]} 8. Bd2 {[%clk 0:02:56]}  Qa6 {[%clk 0:02:22]} 9. d5 {[%clk 0:02:48]}  Bxf3 {[%clk 0:02:20]} 10. Bxf3 {[%clk 0:02:49]}  Nd4 {[%clk 0:02:17]} 11. b3 {[%clk 0:02:43]}  Qg6 {[%clk 0:02:06]} 12. O-O {[%clk 0:02:42]}  Nf6 {[%clk 0:01:55]} 13. Nc3 {[%clk 0:02:37]}  Bb4 {[%clk 0:01:49]} 14. a3 {[%clk 0:02:31]}  e4 {[%clk 0:01:24]} 15. Nxe4 {[%clk 0:01:54]}  Bxd2 {[%clk 0:01:23]} 16. Nxd2 {[%clk 0:01:50]}  Rhe8 {[%clk 0:01:16]} 17. b4 {[%clk 0:01:42]}  Qd3 {[%clk 0:01:05]} 18. c5 {[%clk 0:00:48]}  Nxf3+ {[%clk 0:00:57]} 19. Nxf3 {[%clk 0:00:46]}  Qxd1 {[%clk 0:00:54]} 20. Rfxd1 {[%clk 0:00:42]}  Rxd5 {[%clk 0:00:55]} 21. Rxd5 {[%clk 0:00:38]}  Nxd5 {[%clk 0:00:55]} 22. Re1 {[%clk 0:00:30]}  Rd8 {[%clk 0:00:51]} 23. Ne5 {[%clk 0:00:22]}  f6 {[%clk 0:00:51]} 24. Nc4 {[%clk 0:00:21]}  Nc3 {[%clk 0:00:36]} 25. f3 {[%clk 0:00:18]}  Rd4 {[%clk 0:00:32]} 26. Ne3 {[%clk 0:00:13]}  Rd3 {[%clk 0:00:31]} 27. Nf5 {[%clk 0:00:12]}  Nd5 {[%clk 0:00:26]} 28. Nxg7 {[%clk 0:00:10]}  Rxa3 {[%clk 0:00:26]} 29. Kf2 {[%clk 0:00:08]}  Nxb4 {[%clk 0:00:24]} 30. Re7 {[%clk 0:00:04]}  Nd3+ {[%clk 0:00:22]} 31. Kg3 {[%clk 0:00:04]}  Nxc5 {[%clk 0:00:23]} 32. Ne8 {[%clk 0:00:03]}  Kd8 {[%clk 0:00:20]} 33. Rxc7 {[%clk 0:00:03]}  Kxe8 {[%clk 0:00:19]} 34. Rxc5 {[%clk 0:00:02]}  Kd7 {[%clk 0:00:17]} 35. Rh5 {[%clk 0:00:01]}  b5 {[%clk 0:00:18]} 36. Rxh7+ {[%clk 0:00:02]}  Kc6 {[%clk 0:00:18]} 37. Rh8 {[%clk 0:00:02]}  Kb7 {[%clk 0:00:16]} 38. Rh7+ {[%clk 0:00:01]}  Kb6 {[%clk 0:00:16]} 39. Rf7 {[%clk 0:00:02]}  b4 {[%clk 0:00:15]} 40. Rxf6+ {[%clk 0:00:03]}  Kc5 {[%clk 0:00:16]} 41. Rf8 {[%clk 0:00:04]}  a5 {[%clk 0:00:16]} 42. Rb8 {[%clk 0:00:04]}  b3 {[%clk 0:00:16]} 43. h4 {[%clk 0:00:05]}  a4 {[%clk 0:00:16]} 44. h5 {[%clk 0:00:05]}  Ra1 {[%clk 0:00:17]} 45. h6 {[%clk 0:00:06]}  Rh1 {[%clk 0:00:18]} 46. Rc8+ {[%clk 0:00:05]}  Kd6 {[%clk 0:00:18]} 47. Ra8 {[%clk 0:00:04]}  b2 {[%clk 0:00:18]} 48. Rb8 {[%clk 0:00:04]}  b1=Q {[%clk 0:00:18]} 49. Rxb1 {[%clk 0:00:04]}  Rxb1 {[%clk 0:00:19]} 50. Kf4 {[%clk 0:00:04]}  Rh1 {[%clk 0:00:19]} 51. Kg5 {[%clk 0:00:04]}  a3 {[%clk 0:00:19]} 52. f4 {[%clk 0:00:05]}  a2 {[%clk 0:00:19]} 53. Kg6 {[%clk 0:00:05]}  a1=Q {[%clk 0:00:20]} 54. f5 {[%clk 0:00:06]}  Qe5 {[%clk 0:00:20]} 55. g4 {[%clk 0:00:07]}  Qf4 {[%clk 0:00:20]} 56. g5 {[%clk 0:00:08]}  Ke5 {[%clk 0:00:20]} 57. f6 {[%clk 0:00:09]}  Qf5+ {[%clk 0:00:20]} 58. Kg7 {[%clk 0:00:09]}  Qxg5+ {[%clk 0:00:20]} 59. Kf8 {[%clk 0:00:09]}  Qxf6+ {[%clk 0:00:21]} 60. Kg8 {[%clk 0:00:09]}  Rg1+ {[%clk 0:00:20]} 61. Kh7 {[%clk 0:00:09]}  Qf7+ {[%clk 0:00:21]} 62. Kh8 {[%clk 0:00:09]}  Qg8# {[%clk 0:00:21]} 0-1


[Site "https://www.chess.com"]

[Event "Titled Tuesday Blitz April 19 Late 2022"]
[White "Wagner, Dennis"]
[Black "Jessel, Stephen"]
[WhiteFideId "24650684"]
[BlackFideId "628859"]
[WhiteElo "2693"]
[BlackElo "2534"]
[Result "1-0"]
[Round "06"]
[TimeControl "180+1"]
[Date "2022.04.19"]
[WhiteClock "0:00:25"]
[BlackClock "0:00:05"]

1. d4 {[%clk 0:03:00]}  e6 {[%clk 0:02:59]} 2. g3 {[%clk 0:02:57]}  c5 {[%clk 0:02:59]} 3. Bg2 {[%clk 0:02:51]}  cxd4 {[%clk 0:02:56]} 4. Nf3 {[%clk 0:02:51]}  Nf6 {[%clk 0:02:54]} 5. O-O {[%clk 0:02:50]}  d5 {[%clk 0:02:54]} 6. b3 {[%clk 0:02:50]}  Be7 {[%clk 0:02:47]} 7. Bb2 {[%clk 0:02:50]}  O-O {[%clk 0:02:47]} 8. Nxd4 {[%clk 0:02:50]}  e5 {[%clk 0:02:41]} 9. Nf3 {[%clk 0:02:48]}  e4 {[%clk 0:02:39]} 10. Nd4 {[%clk 0:02:49]}  Re8 {[%clk 0:02:29]} 11. Nd2 {[%clk 0:02:43]}  Bc5 {[%clk 0:02:03]} 12. c4 {[%clk 0:02:33]}  Bg4 {[%clk 0:01:45]} 13. h3 {[%clk 0:02:27]}  Bh5 {[%clk 0:01:45]} 14. g4 {[%clk 0:02:28]}  Bg6 {[%clk 0:01:44]} 15. e3 {[%clk 0:02:28]}  Nc6 {[%clk 0:01:41]} 16. Rc1 {[%clk 0:01:49]}  Nxd4 {[%clk 0:01:34]} 17. exd4 {[%clk 0:01:49]}  Bd6 {[%clk 0:01:34]} 18. Re1 {[%clk 0:01:27]}  Rc8 {[%clk 0:01:30]} 19. Nf1 {[%clk 0:01:25]}  Bb8 {[%clk 0:01:06]} 20. Qd2 {[%clk 0:01:14]}  h5 {[%clk 0:00:57]} 21. g5 {[%clk 0:01:09]}  Nh7 {[%clk 0:00:58]} 22. h4 {[%clk 0:01:10]}  Qd6 {[%clk 0:00:34]} 23. cxd5 {[%clk 0:01:07]}  Rxc1 {[%clk 0:00:25]} 24. Rxc1 {[%clk 0:01:06]}  Qxd5 {[%clk 0:00:22]} 25. Qc3 {[%clk 0:00:47]}  Nf8 {[%clk 0:00:17]} 26. Qc5 {[%clk 0:00:45]}  Qd7 {[%clk 0:00:14]} 27. d5 {[%clk 0:00:44]}  Qg4 {[%clk 0:00:07]} 28. d6 {[%clk 0:00:42]}  Ne6 {[%clk 0:00:06]} 29. d7 {[%clk 0:00:36]}  Rf8 {[%clk 0:00:07]} 30. Qe7 {[%clk 0:00:26]}  Nf4 {[%clk 0:00:06]} 31. Qxf8+ {[%clk 0:00:25]}  Kh7 {[%clk 0:00:05]} 32. Qxg7# {[%clk 0:00:25]} 1-0


[Site "https://www.chess.com"]

[Event "Titled Tuesday Blitz April 19 Late 2022"]
[White "Wieczorek, Oskar"]
[Black "Fernandez Siles, Luis"]
[WhiteFideId "1133950"]
[BlackFideId "2209420"]
[WhiteElo "2640"]
[BlackElo "2395"]
[Result "1-0"]
[Round "06"]
[TimeControl "180+1"]
[Date "2022.04.19"]
[WhiteClock "0:00:09"]
[BlackClock "0:00:18"]

1. e4 {[%clk 0:03:00]}  e5 {[%clk 0:02:55]} 2. Nf3 {[%clk 0:03:00]}  Nf6 {[%clk 0:02:56]} 3. Nc3 {[%clk 0:02:59]}  Nc6 {[%clk 0:02:55]} 4. a3 {[%clk 0:02:59]}  d6 {[%clk 0:02:50]} 5. d4 {[%clk 0:02:55]}  Bg4 {[%clk 0:02:49]} 6. Bb5 {[%clk 0:02:50]}  exd4 {[%clk 0:02:41]} 7. Qxd4 {[%clk 0:02:41]}  Bxf3 {[%clk 0:02:41]} 8. gxf3 {[%clk 0:02:40]}  Be7 {[%clk 0:02:26]} 9. Bxc6+ {[%clk 0:02:25]}  bxc6 {[%clk 0:02:26]} 10. Qa4 {[%clk 0:02:24]}  Qd7 {[%clk 0:02:22]} 11. Bg5 {[%clk 0:02:22]}  O-O {[%clk 0:02:19]} 12. O-O-O {[%clk 0:02:22]}  h6 {[%clk 0:01:59]} 13. Bh4 {[%clk 0:01:52]}  Rab8 {[%clk 0:01:45]} 14. e5 {[%clk 0:01:36]}  Nd5 {[%clk 0:01:27]} 15. Nxd5 {[%clk 0:01:14]}  Bxh4 {[%clk 0:01:26]} 16. Nb4 {[%clk 0:01:01]}  Bg5+ {[%clk 0:01:16]} 17. Kb1 {[%clk 0:01:00]}  Rb5 {[%clk 0:01:07]} 18. Qxa7 {[%clk 0:00:43]}  Rfb8 {[%clk 0:00:54]} 19. Rxd6 {[%clk 0:00:40]}  Qf5 {[%clk 0:00:50]} 20. Rxc6 {[%clk 0:00:32]}  Qxf3 {[%clk 0:00:51]} 21. Re1 {[%clk 0:00:18]}  Rxb4 {[%clk 0:00:51]} 22. axb4 {[%clk 0:00:16]}  Rxb4 {[%clk 0:00:43]} 23. Qc5 {[%clk 0:00:09]}  Qa3 {[%clk 0:00:33]} 24. Qc3 {[%clk 0:00:03]}  Qa5 {[%clk 0:00:28]} 25. e6 {[%clk 0:00:03]}  Bf6 {[%clk 0:00:20]} 26. exf7+ {[%clk 0:00:03]}  Kxf7 {[%clk 0:00:20]} 27. Rxf6+ {[%clk 0:00:03]}  gxf6 {[%clk 0:00:19]} 28. b3 {[%clk 0:00:02]}  Rxb3+ {[%clk 0:00:18]} 29. Qxb3+ {[%clk 0:00:02]}  Kg7 {[%clk 0:00:18]} 30. Rd1 {[%clk 0:00:03]}  Qh5 {[%clk 0:00:17]} 31. Qg3+ {[%clk 0:00:03]}  Kf8 {[%clk 0:00:16]} 32. Rg1 {[%clk 0:00:03]}  Qb5+ {[%clk 0:00:15]} 33. Qb3 {[%clk 0:00:03]}  Qxb3+ {[%clk 0:00:12]} 34. cxb3 {[%clk 0:00:03]}  Kf7 {[%clk 0:00:13]} 35. Kc2 {[%clk 0:00:04]}  Ke6 {[%clk 0:00:14]} 36. Kd3 {[%clk 0:00:05]}  Kd5 {[%clk 0:00:15]} 37. Rg6 {[%clk 0:00:05]}  c5 {[%clk 0:00:15]} 38. Rxf6 {[%clk 0:00:05]}  c4+ {[%clk 0:00:16]} 39. bxc4+ {[%clk 0:00:05]}  Ke5 {[%clk 0:00:17]} 40. Rxh6 {[%clk 0:00:06]}  Kf5 {[%clk 0:00:17]} 41. Rh4 {[%clk 0:00:07]}  Kg5 {[%clk 0:00:17]} 42. Rd4 {[%clk 0:00:08]}  Kf5 {[%clk 0:00:18]} 43. c5 {[%clk 0:00:09]}  Ke5 {[%clk 0:00:18]} 44. c6 {[%clk 0:00:09]} 1-0


[Site "https://www.chess.com"]

[Event "Titled Tuesday Blitz April 19 Late 2022"]
[White "Winkels, Marcel"]
[Black "Pourkashiyan, Atousa"]
[WhiteFideId "1003887"]
[BlackFideId "12502014"]
[WhiteElo "1900"]
[BlackElo "2247"]
[Result "1/2-1/2"]
[Round "06"]
[TimeControl "180+1"]
[Date "2022.04.19"]
[WhiteClock "0:00:13"]
[BlackClock "0:00:20"]

1. d4 {[%clk 0:03:00]}  Nf6 {[%clk 0:02:48]} 2. Nc3 {[%clk 0:03:01]}  e6 {[%clk 0:02:49]} 3. e4 {[%clk 0:02:59]}  d5 {[%clk 0:02:49]} 4. Bg5 {[%clk 0:02:56]}  dxe4 {[%clk 0:02:49]} 5. Nxe4 {[%clk 0:02:55]}  Be7 {[%clk 0:02:49]} 6. Bxf6 {[%clk 0:02:55]}  Bxf6 {[%clk 0:02:50]} 7. Nf3 {[%clk 0:02:53]}  Nd7 {[%clk 0:02:49]} 8. g3 {[%clk 0:02:48]}  Be7 {[%clk 0:02:49]} 9. Bg2 {[%clk 0:02:48]}  O-O {[%clk 0:02:49]} 10. O-O {[%clk 0:02:47]}  c5 {[%clk 0:02:49]} 11. dxc5 {[%clk 0:02:43]}  Nxc5 {[%clk 0:02:50]} 12. Nxc5 {[%clk 0:02:29]}  Bxc5 {[%clk 0:02:51]} 13. c3 {[%clk 0:02:24]}  Bd7 {[%clk 0:02:49]} 14. Qb3 {[%clk 0:02:22]}  Bc6 {[%clk 0:02:48]} 15. Rad1 {[%clk 0:02:19]}  Qf6 {[%clk 0:02:48]} 16. Nd2 {[%clk 0:02:11]}  Bxg2 {[%clk 0:02:34]} 17. Kxg2 {[%clk 0:02:11]}  Bb6 {[%clk 0:02:35]} 18. Nc4 {[%clk 0:02:05]}  h5 {[%clk 0:02:16]} 19. h4 {[%clk 0:02:02]}  g5 {[%clk 0:02:09]} 20. hxg5 {[%clk 0:01:58]}  Qxg5 {[%clk 0:02:05]} 21. Nxb6 {[%clk 0:01:56]}  axb6 {[%clk 0:02:03]} 22. Rd4 {[%clk 0:01:55]}  Rfd8 {[%clk 0:01:55]} 23. Rfd1 {[%clk 0:01:53]}  Rxd4 {[%clk 0:01:47]} 24. Rxd4 {[%clk 0:01:52]}  b5 {[%clk 0:01:48]} 25. a3 {[%clk 0:01:36]}  Rc8 {[%clk 0:01:42]} 26. Qd1 {[%clk 0:01:33]}  Rc4 {[%clk 0:01:35]} 27. Rxc4 {[%clk 0:01:27]}  bxc4 {[%clk 0:01:36]} 28. Qd4 {[%clk 0:01:26]}  b5 {[%clk 0:01:33]} 29. a4 {[%clk 0:01:21]}  bxa4 {[%clk 0:01:11]} 30. Qxc4 {[%clk 0:01:20]}  Qa5 {[%clk 0:01:11]} 31. Qd4 {[%clk 0:01:11]}  Qa8+ {[%clk 0:01:02]} 32. Kh2 {[%clk 0:01:09]}  Qf3 {[%clk 0:00:55]} 33. c4 {[%clk 0:01:07]}  e5 {[%clk 0:00:55]} 34. Qe3 {[%clk 0:01:01]}  Qf6 {[%clk 0:00:36]} 35. c5 {[%clk 0:00:56]}  h4 {[%clk 0:00:36]} 36. Kg2 {[%clk 0:00:52]}  hxg3 {[%clk 0:00:30]} 37. Qxg3+ {[%clk 0:00:50]}  Kf8 {[%clk 0:00:30]} 38. Qf3 {[%clk 0:00:50]}  Qxf3+ {[%clk 0:00:26]} 39. Kxf3 {[%clk 0:00:49]}  f5 {[%clk 0:00:26]} 40. Ke3 {[%clk 0:00:41]}  Ke7 {[%clk 0:00:27]} 41. Kd3 {[%clk 0:00:41]}  Kd7 {[%clk 0:00:21]} 42. Kc4 {[%clk 0:00:41]}  Kc6 {[%clk 0:00:21]} 43. f3 {[%clk 0:00:39]}  f4 {[%clk 0:00:14]} 44. b4 {[%clk 0:00:22]}  axb3 {[%clk 0:00:14]} 45. Kxb3 {[%clk 0:00:21]}  Kxc5 {[%clk 0:00:15]} 46. Kc3 {[%clk 0:00:20]}  Kd5 {[%clk 0:00:13]} 47. Kd3 {[%clk 0:00:20]}  Ke6 {[%clk 0:00:13]} 48. Ke4 {[%clk 0:00:18]}  Kf6 {[%clk 0:00:14]} 49. Kd3 {[%clk 0:00:16]}  Kf5 {[%clk 0:00:15]} 50. Ke2 {[%clk 0:00:16]}  e4 {[%clk 0:00:15]} 51. fxe4+ {[%clk 0:00:16]}  Kxe4 {[%clk 0:00:15]} 52. Kf2 {[%clk 0:00:16]}  f3 {[%clk 0:00:15]} 53. Kf1 {[%clk 0:00:15]}  Kf4 {[%clk 0:00:15]} 54. Kf2 {[%clk 0:00:15]}  Kg4 {[%clk 0:00:15]} 55. Kf1 {[%clk 0:00:15]}  Kg3 {[%clk 0:00:16]} 56. Kg1 {[%clk 0:00:14]}  Kf4 {[%clk 0:00:17]} 57. Kf2 {[%clk 0:00:14]}  Ke4 {[%clk 0:00:18]} 58. Kf1 {[%clk 0:00:13]}  Ke3 {[%clk 0:00:19]} 59. Ke1 {[%clk 0:00:13]}  Kd3 {[%clk 0:00:19]} 60. Kf2 {[%clk 0:00:13]}  Ke4 {[%clk 0:00:20]} 1/2-1/2


[Site "https://www.chess.com"]

[Event "Titled Tuesday Blitz April 19 Late 2022"]
[White "Yedidia, Daniel"]
[Black "Indjic, Aleksandar"]
[WhiteFideId "30905907"]
[BlackFideId "911925"]
[WhiteElo "2621"]
[BlackElo "2616"]
[Result "0-1"]
[Round "06"]
[TimeControl "180+1"]
[Date "2022.04.19"]
[WhiteClock "0:00:18"]
[BlackClock "0:01:48"]

1. d4 {[%clk 0:03:00]}  Nf6 {[%clk 0:03:00]} 2. c4 {[%clk 0:03:00]}  c5 {[%clk 0:03:00]} 3. d5 {[%clk 0:03:01]}  e6 {[%clk 0:03:01]} 4. Nc3 {[%clk 0:03:01]}  exd5 {[%clk 0:03:01]} 5. cxd5 {[%clk 0:03:02]}  d6 {[%clk 0:03:02]} 6. e4 {[%clk 0:03:02]}  g6 {[%clk 0:03:02]} 7. f4 {[%clk 0:03:03]}  Bg7 {[%clk 0:03:03]} 8. Bb5+ {[%clk 0:03:03]}  Nfd7 {[%clk 0:03:03]} 9. a4 {[%clk 0:03:04]}  Na6 {[%clk 0:03:02]} 10. Nf3 {[%clk 0:03:02]}  Nb4 {[%clk 0:03:02]} 11. O-O {[%clk 0:03:01]}  a6 {[%clk 0:03:01]} 12. Bc4 {[%clk 0:03:01]}  Nb6 {[%clk 0:03:00]} 13. Be2 {[%clk 0:02:54]}  Bg4 {[%clk 0:03:00]} 14. Be3 {[%clk 0:02:51]}  Bxf3 {[%clk 0:02:59]} 15. Rxf3 {[%clk 0:02:46]}  O-O {[%clk 0:02:58]} 16. a5 {[%clk 0:02:45]}  Nd7 {[%clk 0:02:58]} 17. Rc1 {[%clk 0:02:19]}  Qxa5 {[%clk 0:02:56]} 18. Qe1 {[%clk 0:02:10]}  Rfe8 {[%clk 0:02:55]} 19. Qh4 {[%clk 0:02:09]}  Qd8 {[%clk 0:02:52]} 20. Qg3 {[%clk 0:01:57]}  Nf6 {[%clk 0:02:48]} 21. e5 {[%clk 0:01:52]}  Nfxd5 {[%clk 0:02:37]} 22. Bf2 {[%clk 0:01:44]}  dxe5 {[%clk 0:02:31]} 23. fxe5 {[%clk 0:01:21]}  Bxe5 {[%clk 0:02:24]} 24. Qg4 {[%clk 0:01:08]}  h5 {[%clk 0:02:17]} 25. Qc4 {[%clk 0:01:00]}  b5 {[%clk 0:02:17]} 26. Qxc5 {[%clk 0:00:56]}  Rc8 {[%clk 0:02:17]} 27. Nxd5 {[%clk 0:00:28]}  Rxc5 {[%clk 0:02:14]} 28. Rxc5 {[%clk 0:00:28]}  Nxd5 {[%clk 0:02:11]} 29. Rd3 {[%clk 0:00:28]}  Qf6 {[%clk 0:01:50]} 30. Rcxd5 {[%clk 0:00:25]}  Bxh2+ {[%clk 0:01:50]} 31. Kxh2 {[%clk 0:00:26]}  Qxf2 {[%clk 0:01:49]} 32. Bf3 {[%clk 0:00:25]}  h4 {[%clk 0:01:49]} 33. Rd1 {[%clk 0:00:18]}  Qg3+ {[%clk 0:01:48]} 34. Kg1 {[%clk 0:00:18]}  h3 {[%clk 0:01:49]} 35. R5d3 {[%clk 0:00:17]}  Kg7 {[%clk 0:01:47]} 36. Bc6 {[%clk 0:00:16]}  Re1+ {[%clk 0:01:47]} 37. Rxe1 {[%clk 0:00:16]}  Qxe1+ {[%clk 0:01:47]} 38. Kh2 {[%clk 0:00:17]}  hxg2 {[%clk 0:01:47]} 39. Bxg2 {[%clk 0:00:18]}  Qe5+ {[%clk 0:01:47]} 40. Kg1 {[%clk 0:00:18]}  Qxb2 {[%clk 0:01:48]} 0-1


[Site "https://www.chess.com"]

[Event "Titled Tuesday Blitz April 19 Late 2022"]
[White "Zherebtsova, Alexandra"]
[Black "Vusatiuk, Vladimir"]
[WhiteFideId "24129518"]
[BlackFideId "14118610"]
[WhiteElo "2025"]
[BlackElo "2157"]
[Result "1-0"]
[Round "06"]
[TimeControl "180+1"]
[Date "2022.04.19"]
[WhiteClock "0:00:37"]
[BlackClock "0:00:04"]

1. d4 {[%clk 0:02:53]}  Nf6 {[%clk 0:02:59]} 2. Nf3 {[%clk 0:02:51]}  e6 {[%clk 0:02:57]} 3. c4 {[%clk 0:02:51]}  Bb4+ {[%clk 0:02:50]} 4. Nbd2 {[%clk 0:02:48]}  d5 {[%clk 0:02:36]} 5. a3 {[%clk 0:02:45]}  Be7 {[%clk 0:02:35]} 6. b4 {[%clk 0:02:44]}  a5 {[%clk 0:02:32]} 7. b5 {[%clk 0:02:44]}  dxc4 {[%clk 0:02:22]} 8. Nxc4 {[%clk 0:02:43]}  b6 {[%clk 0:02:20]} 9. e3 {[%clk 0:02:37]}  Bb7 {[%clk 0:02:19]} 10. Be2 {[%clk 0:02:36]}  O-O {[%clk 0:02:19]} 11. O-O {[%clk 0:02:36]}  Nbd7 {[%clk 0:02:11]} 12. Bb2 {[%clk 0:02:34]}  c6 {[%clk 0:02:06]} 13. bxc6 {[%clk 0:02:29]}  Bxc6 {[%clk 0:02:07]} 14. Nce5 {[%clk 0:02:25]}  Nxe5 {[%clk 0:02:05]} 15. Nxe5 {[%clk 0:02:24]}  Bd5 {[%clk 0:02:01]} 16. Rc1 {[%clk 0:02:18]}  Rc8 {[%clk 0:01:53]} 17. Qa4 {[%clk 0:02:14]}  Ne4 {[%clk 0:01:36]} 18. Nc6 {[%clk 0:01:51]}  Qd6 {[%clk 0:00:54]} 19. Nxe7+ {[%clk 0:01:15]}  Qxe7 {[%clk 0:00:55]} 20. f3 {[%clk 0:01:10]}  Nd2 {[%clk 0:00:51]} 21. Rfd1 {[%clk 0:01:07]}  Bb3 {[%clk 0:00:45]} 22. Qb5 {[%clk 0:01:00]}  Bxd1 {[%clk 0:00:44]} 23. Rxd1 {[%clk 0:00:54]}  Rc2 {[%clk 0:00:44]} 24. Bd3 {[%clk 0:00:50]}  Rfc8 {[%clk 0:00:20]} 25. Bxc2 {[%clk 0:00:50]}  Rxc2 {[%clk 0:00:21]} 26. Bc1 {[%clk 0:00:44]}  Qh4 {[%clk 0:00:04]} 27. Qe8# {[%clk 0:00:37]} 1-0


[Site "https://www.chess.com"]